[Event "*** Titled Tuesday Blitz"]
[Site "Chess.com"]
[Date "2020.04.14"]
[Round "2"]
[White "CalinGheorghiu"]
[Black "Peng_Li-Min"]
[Result "1-0"]
[WhiteElo "2332"]
[BlackElo "2631"]
[TimeControl "180+1"]
[EndTime "10:19:09 PDT"]
[Termination "CalinGheorghiu won by resignation"]

1. e4 {[%clk 0:03:00.9]} 1... c5 {[%clk 0:02:57.7]} 2. Nf3 {[%clk 0:03:00.1]}
2... d6 {[%clk 0:02:57.7]} 3. d4 {[%clk 0:02:59]} 3... cxd4 {[%clk 0:02:58.6]}
4. Nxd4 {[%clk 0:02:59.1]} 4... Nf6 {[%clk 0:02:58.7]} 5. Nc3 {[%clk 0:02:59.1]}
5... a6 {[%clk 0:02:58.6]} 6. f3 {[%clk 0:02:59]} 6... e5 {[%clk 0:02:56]} 7.
Nb3 {[%clk 0:02:59.1]} 7... Be6 {[%clk 0:02:55.4]} 8. Be3 {[%clk 0:02:59.6]}
8... h5 {[%clk 0:02:55.8]} 9. Qd2 {[%clk 0:02:59.1]} 9... Nbd7 {[%clk
0:02:56.4]} 10. Be2 {[%clk 0:02:59.2]} 10... Rc8 {[%clk 0:02:56.8]} 11. O-O
{[%clk 0:02:53.1]} 11... b5 {[%clk 0:02:55.7]} 12. a4 {[%clk 0:02:47.5]} 12...
b4 {[%clk 0:02:53.2]} 13. Na2 {[%clk 0:02:47.5]} 13... a5 {[%clk 0:02:52.4]} 14.
Nac1 {[%clk 0:02:48]} 14... Qc7 {[%clk 0:02:50.5]} 15. Nd3 {[%clk 0:02:43.9]}
15... Be7 {[%clk 0:02:40.2]} 16. Rac1 {[%clk 0:02:40.4]} 16... O-O {[%clk
0:02:35.1]} 17. Nf2 {[%clk 0:02:39.5]} 17... d5 {[%clk 0:02:34.8]} 18. exd5
{[%clk 0:02:33.3]} 18... Nxd5 {[%clk 0:02:35.7]} 19. Bd3 {[%clk 0:02:32.7]}
19... f5 {[%clk 0:02:11.7]} 20. Rfe1 {[%clk 0:02:27.9]} 20... f4 {[%clk
0:02:03.8]} 21. Bd4 {[%clk 0:02:23.1]} 21... Bf7 {[%clk 0:01:26.6]} 22. Be4
{[%clk 0:02:04.3]} 22... N5f6 {[%clk 0:01:13.8]} 23. Bf5 {[%clk 0:01:49.9]}
23... Rce8 {[%clk 0:01:09.6]} 24. Bxe5 {[%clk 0:01:14.5]} 24... Nxe5 {[%clk
0:01:09.4]} 25. Qxf4 {[%clk 0:01:14.8]} 25... Bd6 {[%clk 0:01:06.7]} 26. Qh4
{[%clk 0:01:14.2]} 26... Qc4 {[%clk 0:00:53.8]} 27. Ne4 {[%clk 0:01:08.1]} 27...
Nxe4 {[%clk 0:00:46.3]} 28. Rxe4 {[%clk 0:01:07.3]} 28... Qc7 {[%clk 0:00:46.6]}
29. Nd4 {[%clk 0:00:58.1]} 29... Nc4 {[%clk 0:00:35.1]} 30. Ne6 {[%clk
0:00:54.3]} 30... Qb6+ {[%clk 0:00:27.7]} 31. Kh1 {[%clk 0:00:53.6]} 31... Nxb2
{[%clk 0:00:20.6]} 32. Qg5 {[%clk 0:00:36.1]} 32... Bxe6 {[%clk 0:00:18.7]} 33.
Bxe6+ {[%clk 0:00:36.3]} 33... Rxe6 {[%clk 0:00:18.9]} 34. Rxe6 {[%clk
0:00:36.9]} 34... Qd4 {[%clk 0:00:18.9]} 35. Rce1 {[%clk 0:00:29.7]} 35... Qf4
{[%clk 0:00:17.3]} 36. Qxh5 {[%clk 0:00:29.1]} 36... Nxa4 {[%clk 0:00:16.9]} 37.
Re8 {[%clk 0:00:26.6]} 37... Rxe8 {[%clk 0:00:11.4]} 38. Qxe8+ {[%clk
0:00:25.4]} 38... Bf8 {[%clk 0:00:12.3]} 39. Qxa4 {[%clk 0:00:24.9]} 39... Qd2
{[%clk 0:00:12.2]} 40. Qe8 {[%clk 0:00:24.4]} 40... Qxc2 {[%clk 0:00:10.5]} 41.
Qe6+ {[%clk 0:00:24.9]} 41... Kh8 {[%clk 0:00:11]} 42. h3 {[%clk 0:00:20.2]}
42... Qc5 {[%clk 0:00:07.4]} 43. Re4 {[%clk 0:00:16.9]} 43... Qc1+ {[%clk
0:00:02.7]} 44. Kh2 {[%clk 0:00:16.4]} 44... Qc7+ {[%clk 0:00:03.6]} 45. Kh1
{[%clk 0:00:14.8]} 45... Qc1+ {[%clk 0:00:03.9]} 46. Re1 {[%clk 0:00:15.4]}
46... Qc5 {[%clk 0:00:03.5]} 47. Qf7 {[%clk 0:00:11.6]} 47... Kh7 {[%clk
0:00:03.8]} 48. Qe6 {[%clk 0:00:09.2]} 48... Bd6 {[%clk 0:00:03.8]} 49. Qe4+
{[%clk 0:00:08.9]} 49... Kh8 {[%clk 0:00:03.5]} 50. Qh4+ {[%clk 0:00:08.6]}
50... Kg8 {[%clk 0:00:03.7]} 51. Re8+ {[%clk 0:00:08.7]} 51... Kf7 {[%clk
0:00:04.2]} 52. Re1 {[%clk 0:00:07.4]} 52... b3 {[%clk 0:00:04]} 53. Qe4 {[%clk
0:00:06.6]} 53... b2 {[%clk 0:00:03.8]} 54. Qe8+ {[%clk 0:00:06.7]} 54... Kf6
{[%clk 0:00:03.9]} 55. Qe6+ {[%clk 0:00:06.3]} 55... Kg5 {[%clk 0:00:04.6]} 56.
Qg4+ {[%clk 0:00:06.2]} 56... Kh6 {[%clk 0:00:05.3]} 57. Re6+ {[%clk 0:00:06.2]}
57... Kh7 {[%clk 0:00:05.1]} 58. Qg6+ {[%clk 0:00:06.8]} 58... Kg8 {[%clk
0:00:05.6]} 59. Re8+ {[%clk 0:00:07.2]} 59... Bf8 {[%clk 0:00:06.5]} 60. Qe6+
{[%clk 0:00:07.4]} 60... Kh7 {[%clk 0:00:07.1]} 61. Qe4+ {[%clk 0:00:07.6]}
61... g6 {[%clk 0:00:06.8]} 62. Re6 {[%clk 0:00:04.5]} 62... Qc1+ {[%clk
0:00:07.7]} 63. Kh2 {[%clk 0:00:04.8]} 63... Qc7+ {[%clk 0:00:08.1]} 64. f4
{[%clk 0:00:04.3]} 64... Qf7 {[%clk 0:00:09]} 65. Rb6 {[%clk 0:00:02.4]} 65...
Bb4 {[%clk 0:00:07.9]} 66. Rb7 {[%clk 0:00:02.4]} 66... Kg7 {[%clk 0:00:08.4]}
67. Rxf7+ {[%clk 0:00:02]} 67... Kxf7 {[%clk 0:00:09.3]} 68. Qd5+ {[%clk
0:00:02.4]} 68... Kf6 {[%clk 0:00:09.4]} 69. Qe5+ {[%clk 0:00:02.9]} 69... Kf7
{[%clk 0:00:10]} 70. Qxb2 {[%clk 0:00:03.8]} 70... Bd6 {[%clk 0:00:10]} 71. Qd4
{[%clk 0:00:04]} 71... Ke7 {[%clk 0:00:10]} 72. Qe4+ {[%clk 0:00:03.3]} 72...
Kd7 {[%clk 0:00:10.1]} 73. Qxg6 {[%clk 0:00:03.5]} 73... Bxf4+ {[%clk
0:00:09.9]} 74. g3 {[%clk 0:00:04.4]} 74... Bd6 {[%clk 0:00:10.6]} 75. Qe4
{[%clk 0:00:04.7]} 75... a4 {[%clk 0:00:09.9]} 76. Qxa4+ {[%clk 0:00:05.1]} 1-0

[Event "*** Titled Tuesday Blitz"]
[Site "Chess.com"]
[Date "2020.04.14"]
[Round "2"]
[White "AtabayevSaparmyrat"]
[Black "NiranjanNavalgund"]
[Result "1-0"]
[WhiteElo "2785"]
[BlackElo "2425"]
[TimeControl "180+1"]
[EndTime "10:19:27 PDT"]
[Termination "AtabayevSaparmyrat won by resignation"]

1. e4 {[%clk 0:03:00]} 1... e5 {[%clk 0:02:59.7]} 2. Nf3 {[%clk 0:03:00.2]} 2...
Nc6 {[%clk 0:03:00.2]} 3. Bb5 {[%clk 0:03:00.3]} 3... a6 {[%clk 0:03:00.6]} 4.
Bxc6 {[%clk 0:03:00.5]} 4... dxc6 {[%clk 0:03:01.5]} 5. Nc3 {[%clk 0:03:01.4]}
5... f6 {[%clk 0:03:00.6]} 6. d4 {[%clk 0:03:01.7]} 6... exd4 {[%clk 0:03:01.5]}
7. Nxd4 {[%clk 0:03:02.6]} 7... c5 {[%clk 0:03:01.7]} 8. Nde2 {[%clk 0:03:02.8]}
8... Qxd1+ {[%clk 0:03:02.2]} 9. Nxd1 {[%clk 0:03:03.7]} 9... Bd7 {[%clk
0:03:01.3]} 10. Bf4 {[%clk 0:03:02.5]} 10... O-O-O {[%clk 0:03:00.8]} 11. Ne3
{[%clk 0:03:02.7]} 11... Bc6 {[%clk 0:03:01.2]} 12. Nc3 {[%clk 0:03:01.8]} 12...
Ne7 {[%clk 0:02:59.7]} 13. f3 {[%clk 0:02:57.5]} 13... Ng6 {[%clk 0:02:59.4]}
14. Bg3 {[%clk 0:02:57.7]} 14... Bd6 {[%clk 0:02:59.5]} 15. O-O-O {[%clk
0:02:56]} 15... Be5 {[%clk 0:02:50]} 16. Bxe5 {[%clk 0:02:52]} 16... Nxe5 {[%clk
0:02:44.8]} 17. Nf5 {[%clk 0:02:37.2]} 17... g6 {[%clk 0:02:43.5]} 18. Ne7+
{[%clk 0:02:37]} 18... Kb8 {[%clk 0:02:43.3]} 19. f4 {[%clk 0:02:36.9]} 19...
Ng4 {[%clk 0:02:31.3]} 20. Nxc6+ {[%clk 0:02:36.4]} 20... bxc6 {[%clk
0:02:32.2]} 21. Rxd8+ {[%clk 0:02:16.8]} 21... Rxd8 {[%clk 0:02:33.1]} 22. h3
{[%clk 0:02:15.6]} 22... Ne3 {[%clk 0:02:32.5]} 23. g3 {[%clk 0:02:04.7]} 23...
g5 {[%clk 0:02:18.1]} 24. fxg5 {[%clk 0:01:51.3]} 24... fxg5 {[%clk 0:02:19]}
25. Re1 {[%clk 0:01:51.6]} 25... Nc4 {[%clk 0:02:17.1]} 26. Rf1 {[%clk
0:01:49.5]} 26... h6 {[%clk 0:01:48.6]} 27. Rf5 {[%clk 0:01:35.2]} 27... Ne3
{[%clk 0:01:42.8]} 28. Rf3 {[%clk 0:01:11.7]} 28... Nc4 {[%clk 0:01:41.2]} 29.
Rf6 {[%clk 0:01:08.4]} 29... Rd6 {[%clk 0:01:36.3]} 30. Rf8+ {[%clk 0:01:01.5]}
30... Ka7 {[%clk 0:01:35.1]} 31. b3 {[%clk 0:01:00.4]} 31... Ne5 {[%clk
0:01:28.1]} 32. Rf5 {[%clk 0:00:58.6]} 32... Re6 {[%clk 0:01:28]} 33. Kd2 {[%clk
0:00:57.4]} 33... c4 {[%clk 0:01:28.3]} 34. b4 {[%clk 0:00:52.8]} 34... a5
{[%clk 0:01:25.1]} 35. bxa5 {[%clk 0:00:48.9]} 35... Ka6 {[%clk 0:01:24.4]} 36.
Ke3 {[%clk 0:00:49.1]} 36... c5 {[%clk 0:01:22.6]} 37. Nd5 {[%clk 0:00:47.1]}
37... Kxa5 {[%clk 0:01:15.1]} 38. Nxc7 {[%clk 0:00:44.8]} 38... Re7 {[%clk
0:01:15.4]} 39. Nd5 {[%clk 0:00:44.8]} 39... Re6 {[%clk 0:01:15.6]} 40. Rf6
{[%clk 0:00:43.7]} 40... Rxf6 {[%clk 0:01:05.3]} 41. Nxf6 {[%clk 0:00:44.5]}
41... Kb4 {[%clk 0:01:05.6]} 42. Ng4 {[%clk 0:00:44.8]} 42... Nf7 {[%clk
0:01:01.7]} 43. Kd2 {[%clk 0:00:29.8]} 43... c3+ {[%clk 0:00:56.3]} 44. Kd3
{[%clk 0:00:22.2]} 44... h5 {[%clk 0:00:56.5]} 45. Nf6 {[%clk 0:00:22]} 45...
Ne5+ {[%clk 0:00:56.7]} 46. Ke2 {[%clk 0:00:15.9]} 46... h4 {[%clk 0:00:51.9]}
47. gxh4 {[%clk 0:00:15.5]} 47... gxh4 {[%clk 0:00:52.1]} 48. Nd5+ {[%clk
0:00:16.1]} 48... Kc4 {[%clk 0:00:51.2]} 49. a4 {[%clk 0:00:16.2]} 49... Nc6
{[%clk 0:00:33.9]} 50. Kd1 {[%clk 0:00:16.3]} 50... Kd4 {[%clk 0:00:30.9]} 51.
Nf6 {[%clk 0:00:13.4]} 51... Na5 {[%clk 0:00:25.8]} 52. Ke2 {[%clk 0:00:12.7]}
52... Ke5 {[%clk 0:00:18.7]} 53. Nd5 {[%clk 0:00:12.8]} 53... Kxe4 {[%clk
0:00:18.7]} 54. Nxc3+ {[%clk 0:00:13.2]} 54... Kf4 {[%clk 0:00:19.2]} 55. Kf2
{[%clk 0:00:13.4]} 55... Nc6 {[%clk 0:00:17.4]} 56. Nd5+ {[%clk 0:00:13]} 56...
Ke4 {[%clk 0:00:17.7]} 57. Nc7 {[%clk 0:00:12.3]} 57... Kd4 {[%clk 0:00:17.7]}
58. Ke2 {[%clk 0:00:12.2]} 58... Kc3 {[%clk 0:00:17.9]} 59. Kd1 {[%clk
0:00:12.6]} 59... c4 {[%clk 0:00:18.4]} 60. Nd5+ {[%clk 0:00:12]} 60... Kb2
{[%clk 0:00:18.7]} 61. Ne3 {[%clk 0:00:10.5]} 61... c3 {[%clk 0:00:18.7]} 62.
Nd5 {[%clk 0:00:10.9]} 62... Nd4 {[%clk 0:00:18.6]} 63. a5 {[%clk 0:00:10.9]}
63... Nxc2 {[%clk 0:00:18.8]} 64. a6 {[%clk 0:00:08]} 64... Nd4 {[%clk
0:00:19.1]} 65. Nxc3 {[%clk 0:00:07.5]} 65... Nc6 {[%clk 0:00:17.8]} 66. Nb5
{[%clk 0:00:07.6]} 66... Kb3 {[%clk 0:00:16.4]} 67. a7 {[%clk 0:00:07.8]} 67...
Nxa7 {[%clk 0:00:16.6]} 68. Nxa7 {[%clk 0:00:08.7]} 68... Kc4 {[%clk 0:00:17]}
69. Ke2 {[%clk 0:00:09.2]} 69... Kd4 {[%clk 0:00:17.6]} 70. Kf3 {[%clk
0:00:09.4]} 70... Ke5 {[%clk 0:00:18]} 71. Kg4 {[%clk 0:00:09.5]} 71... Kf6
{[%clk 0:00:18.9]} 72. Nb5 {[%clk 0:00:10.3]} 72... Kg6 {[%clk 0:00:19.5]} 73.
Nc3 {[%clk 0:00:11.1]} 73... Kh6 {[%clk 0:00:20.4]} 74. Ne2 {[%clk 0:00:12]}
74... Kg6 {[%clk 0:00:21.3]} 75. Nf4+ {[%clk 0:00:12.3]} 75... Kh6 {[%clk
0:00:22.2]} 76. Kxh4 {[%clk 0:00:12.9]} 76... Kh7 {[%clk 0:00:22.9]} 77. Kg4
{[%clk 0:00:13.8]} 77... Kh6 {[%clk 0:00:23.8]} 78. h4 {[%clk 0:00:14.7]} 78...
Kh7 {[%clk 0:00:23.9]} 79. h5 {[%clk 0:00:15.6]} 1-0

[Event "*** Titled Tuesday Blitz"]
[Site "Chess.com"]
[Date "2020.04.14"]
[Round "2"]
[White "Gerasimenyuk_Miha"]
[Black "GodDMuhammad"]
[Result "1-0"]
[WhiteElo "2501"]
[BlackElo "2245"]
[TimeControl "180+1"]
[EndTime "10:19:28 PDT"]
[Termination "Gerasimenyuk_Miha won by resignation"]

1. d4 {[%clk 0:03:00.9]} 1... Nf6 {[%clk 0:02:16.9]} 2. Nf3 {[%clk 0:03:01.8]}
2... e6 {[%clk 0:02:14.9]} 3. Bg5 {[%clk 0:03:02.7]} 3... d5 {[%clk 0:02:15.1]}
4. e3 {[%clk 0:03:02.1]} 4... Nbd7 {[%clk 0:02:15.3]} 5. Nbd2 {[%clk 0:03:01]}
5... Bd6 {[%clk 0:02:14.9]} 6. c3 {[%clk 0:03:00.6]} 6... c6 {[%clk 0:02:14.3]}
7. Bd3 {[%clk 0:03:00.6]} 7... Qe7 {[%clk 0:02:14.7]} 8. Qc2 {[%clk 0:02:57.8]}
8... e5 {[%clk 0:02:14.4]} 9. dxe5 {[%clk 0:02:58.4]} 9... Nxe5 {[%clk
0:02:15.3]} 10. Nxe5 {[%clk 0:02:58.5]} 10... Bxe5 {[%clk 0:02:16.2]} 11. O-O-O
{[%clk 0:02:58.3]} 11... h6 {[%clk 0:02:15.8]} 12. Bh4 {[%clk 0:02:57.2]} 12...
a5 {[%clk 0:02:15.6]} 13. Nf3 {[%clk 0:02:56.5]} 13... Bd6 {[%clk 0:02:12.8]}
14. h3 {[%clk 0:02:56.8]} 14... g5 {[%clk 0:02:02.2]} 15. Bg3 {[%clk 0:02:56.4]}
15... Bxg3 {[%clk 0:02:01.9]} 16. fxg3 {[%clk 0:02:57.3]} 16... Be6 {[%clk
0:01:43.3]} 17. Kb1 {[%clk 0:02:55]} 17... b5 {[%clk 0:01:37.8]} 18. Nd4 {[%clk
0:02:55]} 18... Bd7 {[%clk 0:01:31.7]} 19. e4 {[%clk 0:02:47.1]} 19... dxe4
{[%clk 0:01:30.9]} 20. Rhe1 {[%clk 0:02:43.2]} 20... O-O {[%clk 0:01:23.2]} 21.
Bxe4 {[%clk 0:02:41.8]} 21... Nxe4 {[%clk 0:01:23.6]} 22. Rxe4 {[%clk
0:02:41.7]} 22... Qf6 {[%clk 0:01:20.1]} 23. g4 {[%clk 0:02:41.5]} 23... c5
{[%clk 0:01:16.2]} 24. Nf3 {[%clk 0:02:28.4]} 24... Be6 {[%clk 0:01:15.4]} 25.
h4 {[%clk 0:02:24.3]} 25... gxh4 {[%clk 0:01:08.4]} 26. Qe2 {[%clk 0:02:19.1]}
26... b4 {[%clk 0:01:05.7]} 27. c4 {[%clk 0:02:17.3]} 27... a4 {[%clk
0:01:04.4]} 28. Qe3 {[%clk 0:02:16.4]} 28... a3 {[%clk 0:01:02]} 29. Rd2 {[%clk
0:02:13.7]} 29... axb2 {[%clk 0:01:01.6]} 30. Rxb2 {[%clk 0:02:12.2]} 30... Rfd8
{[%clk 0:01:00.5]} 31. g5 {[%clk 0:02:03.2]} 31... hxg5 {[%clk 0:00:50]} 32. Re5
{[%clk 0:01:57]} 32... g4 {[%clk 0:00:34.4]} 33. Rg5+ {[%clk 0:01:53]} 33... Kh7
{[%clk 0:00:20.5]} 34. Qe4+ {[%clk 0:01:47.6]} 34... Kh8 {[%clk 0:00:19.7]} 35.
Rh5+ {[%clk 0:01:47]} 35... Kg7 {[%clk 0:00:20.1]} 36. Rg5+ {[%clk 0:01:10.2]}
36... Kf8 {[%clk 0:00:19.8]} 37. Qe3 {[%clk 0:01:07.6]} 37... Bf5+ {[%clk
0:00:08.5]} 38. Kc1 {[%clk 0:01:04.4]} 38... Qc3+ {[%clk 0:00:08.7]} 39. Qxc3
{[%clk 0:00:59]} 39... bxc3 {[%clk 0:00:09.6]} 40. Rf2 {[%clk 0:00:51.9]} 40...
gxf3 {[%clk 0:00:09.5]} 41. Rxf5 {[%clk 0:00:50.5]} 41... Rd7 {[%clk 0:00:09.3]}
42. R5xf3 {[%clk 0:00:48]} 42... Ra3 {[%clk 0:00:08.8]} 43. Rc2 {[%clk
0:00:38.6]} 43... Rda7 {[%clk 0:00:07.5]} 44. Rfxc3 {[%clk 0:00:35]} 44... Rxa2
{[%clk 0:00:07.9]} 45. Rh3 {[%clk 0:00:26.6]} 45... Ra1+ {[%clk 0:00:08.3]} 46.
Kd2 {[%clk 0:00:26]} 46... Rd7+ {[%clk 0:00:08.2]} 47. Kc3 {[%clk 0:00:25.4]}
47... Ra3+ {[%clk 0:00:07.7]} 48. Kb2 {[%clk 0:00:25.3]} 48... Rxh3 {[%clk
0:00:08.6]} 49. gxh3 {[%clk 0:00:25.6]} 49... Rd4 {[%clk 0:00:09.5]} 50. Kc3
{[%clk 0:00:23.8]} 50... Ke7 {[%clk 0:00:09]} 51. Rf2 {[%clk 0:00:23.6]} 51...
f6 {[%clk 0:00:09]} 52. Rf5 {[%clk 0:00:23.3]} 52... Ke6 {[%clk 0:00:09.2]} 53.
Rxc5 {[%clk 0:00:23.1]} 53... Rf4 {[%clk 0:00:10.1]} 54. Rh5 {[%clk 0:00:22.5]}
54... Rf3+ {[%clk 0:00:10.1]} 55. Kd4 {[%clk 0:00:22.2]} 55... Rxh3 {[%clk
0:00:11]} 56. c5 {[%clk 0:00:22.2]} 56... Rh1 {[%clk 0:00:11.9]} 57. c6 {[%clk
0:00:21.5]} 57... Rc1 {[%clk 0:00:11.9]} 58. Rxh4 {[%clk 0:00:20.3]} 58... Rxc6
{[%clk 0:00:11.9]} 59. Rh8 {[%clk 0:00:19]} 59... Ra6 {[%clk 0:00:11.1]} 60. Ke3
{[%clk 0:00:18.9]} 60... Ke5 {[%clk 0:00:10.8]} 61. Kf3 {[%clk 0:00:18.8]} 61...
Ra3+ {[%clk 0:00:10.6]} 62. Kf2 {[%clk 0:00:18.6]} 62... f5 {[%clk 0:00:10.5]}
63. Ke2 {[%clk 0:00:18.4]} 63... Ke4 {[%clk 0:00:10.7]} 64. Kf2 {[%clk
0:00:18.5]} 64... Ra2+ {[%clk 0:00:10.7]} 65. Kf1 {[%clk 0:00:17.5]} 65... f4
{[%clk 0:00:11.3]} 66. Rh3 {[%clk 0:00:16.9]} 66... Kd4 {[%clk 0:00:10]} 67. Rh8
{[%clk 0:00:16.4]} 67... Ke3 {[%clk 0:00:10.3]} 68. Rc8 {[%clk 0:00:11.5]} 68...
Ra1+ {[%clk 0:00:10]} 69. Kg2 {[%clk 0:00:11]} 69... f3+ {[%clk 0:00:10.9]} 70.
Kh2 {[%clk 0:00:10.5]} 70... Ra2+ {[%clk 0:00:10.1]} 71. Kg3 {[%clk 0:00:09.5]}
71... Rg2+ {[%clk 0:00:09.3]} 72. Kh3 {[%clk 0:00:09.6]} 72... Rg5 {[%clk
0:00:09.1]} 73. Rc3+ {[%clk 0:00:08.6]} 73... Kf2 {[%clk 0:00:08.6]} 74. Rc2+
{[%clk 0:00:08.4]} 74... Ke3 {[%clk 0:00:09]} 75. Rc3+ {[%clk 0:00:08.5]} 75...
Ke2 {[%clk 0:00:09.7]} 76. Rc2+ {[%clk 0:00:08.5]} 76... Kd3 {[%clk 0:00:10.2]}
77. Ra2 {[%clk 0:00:07.7]} 77... Rd5 {[%clk 0:00:07.3]} 78. Rb2 {[%clk 0:00:07]}
78... Rd8 {[%clk 0:00:07.1]} 79. Kg3 {[%clk 0:00:06.2]} 79... Rf8 {[%clk
0:00:05.9]} 80. Kf2 {[%clk 0:00:05.3]} 80... Ke4 {[%clk 0:00:05.7]} 81. Rb4+
{[%clk 0:00:05.2]} 81... Kd3 {[%clk 0:00:06]} 82. Rb3+ {[%clk 0:00:05.3]} 82...
Ke4 {[%clk 0:00:06.4]} 83. Re3+ {[%clk 0:00:05.4]} 83... Kf4 {[%clk 0:00:06.6]}
84. Rxf3+ {[%clk 0:00:05.8]} 84... Kg4 {[%clk 0:00:07.5]} 85. Rxf8 {[%clk
0:00:06.4]} 85... Kg5 {[%clk 0:00:08.4]} 86. Rf3 {[%clk 0:00:06.6]} 1-0

[Event "*** Titled Tuesday Blitz"]
[Site "Chess.com"]
[Date "2020.04.14"]
[Round "2"]
[White "artooon"]
[Black "ehrenfeld"]
[Result "1/2-1/2"]
[WhiteElo "2694"]
[BlackElo "2457"]
[TimeControl "180+1"]
[EndTime "10:19:31 PDT"]
[Termination "Game drawn by stalemate"]

1. e4 {[%clk 0:03:00.9]} 1... e5 {[%clk 0:02:59.5]} 2. Nf3 {[%clk 0:03:01.4]}
2... Nc6 {[%clk 0:02:59.5]} 3. d4 {[%clk 0:03:02.1]} 3... exd4 {[%clk
0:02:58.9]} 4. Bc4 {[%clk 0:03:02.8]} 4... Nf6 {[%clk 0:02:58.4]} 5. O-O {[%clk
0:03:03.4]} 5... Nxe4 {[%clk 0:02:55.7]} 6. Nc3 {[%clk 0:03:03.8]} 6... Nxc3
{[%clk 0:02:26.9]} 7. bxc3 {[%clk 0:03:02.8]} 7... Be7 {[%clk 0:02:26.4]} 8.
Nxd4 {[%clk 0:03:01.8]} 8... Nxd4 {[%clk 0:02:21.3]} 9. Qxd4 {[%clk 0:03:02.7]}
9... O-O {[%clk 0:02:18.4]} 10. Bf4 {[%clk 0:02:45.8]} 10... d6 {[%clk 0:02:18]}
11. Rfe1 {[%clk 0:02:45.7]} 11... Bf6 {[%clk 0:02:17.8]} 12. Qd3 {[%clk
0:02:45.8]} 12... Bd7 {[%clk 0:02:13]} 13. Bd5 {[%clk 0:02:35.5]} 13... Rb8
{[%clk 0:02:07]} 14. Rab1 {[%clk 0:02:34.1]} 14... b6 {[%clk 0:02:04.7]} 15. Qc4
{[%clk 0:02:27.8]} 15... c6 {[%clk 0:01:51.5]} 16. Bf3 {[%clk 0:02:17.5]} 16...
d5 {[%clk 0:01:50.6]} 17. Qa4 {[%clk 0:02:15.5]} 17... Ra8 {[%clk 0:01:42.4]}
18. c4 {[%clk 0:02:14]} 18... Re8 {[%clk 0:01:22.9]} 19. Red1 {[%clk 0:02:06.3]}
19... Qe7 {[%clk 0:01:02.8]} 20. cxd5 {[%clk 0:01:47.8]} 20... cxd5 {[%clk
0:01:02]} 21. Qb3 {[%clk 0:01:47.1]} 21... Be6 {[%clk 0:01:01.6]} 22. Bxd5
{[%clk 0:01:37.4]} 22... Rad8 {[%clk 0:00:58]} 23. Bxe6 {[%clk 0:01:33.1]} 23...
Rxd1+ {[%clk 0:00:53.1]} 24. Rxd1 {[%clk 0:01:34]} 24... Qxe6 {[%clk 0:00:53.4]}
25. Qxe6 {[%clk 0:01:31.2]} 25... Rxe6 {[%clk 0:00:53.1]} 26. Be3 {[%clk
0:01:17.9]} 26... Rc6 {[%clk 0:00:51.3]} 27. g4 {[%clk 0:01:14.8]} 27... h6
{[%clk 0:00:46.9]} 28. Rd7 {[%clk 0:01:12.4]} 28... a6 {[%clk 0:00:43]} 29. a4
{[%clk 0:01:06]} 29... b5 {[%clk 0:00:39.6]} 30. axb5 {[%clk 0:01:01.2]} 30...
axb5 {[%clk 0:00:39.2]} 31. Rb7 {[%clk 0:01:01.1]} 31... Rxc2 {[%clk 0:00:37.4]}
32. Rxb5 {[%clk 0:01:01.3]} 32... Rc7 {[%clk 0:00:33.9]} 33. Kg2 {[%clk
0:01:00.2]} 33... Rd7 {[%clk 0:00:33.8]} 34. Rb6 {[%clk 0:00:58.6]} 34... Kh7
{[%clk 0:00:32.8]} 35. Rb5 {[%clk 0:00:55.1]} 35... Bd4 {[%clk 0:00:31]} 36. Bf4
{[%clk 0:00:53.9]} 36... g6 {[%clk 0:00:30.8]} 37. Rb4 {[%clk 0:00:51.7]} 37...
Bg7 {[%clk 0:00:30.7]} 38. Re4 {[%clk 0:00:50.5]} 38... Rd4 {[%clk 0:00:30.5]}
39. Kf3 {[%clk 0:00:49.3]} 39... Rxe4 {[%clk 0:00:29.9]} 40. Kxe4 {[%clk
0:00:50.2]} 40... Bf6 {[%clk 0:00:28.4]} 41. Be5 {[%clk 0:00:50.1]} 41... Bd8
{[%clk 0:00:26.9]} 42. f4 {[%clk 0:00:49.5]} 42... Be7 {[%clk 0:00:20.9]} 43. f5
{[%clk 0:00:49.6]} 43... gxf5+ {[%clk 0:00:20.5]} 44. Kxf5 {[%clk 0:00:50.5]}
44... Bd8 {[%clk 0:00:18.3]} 45. h3 {[%clk 0:00:50.6]} 45... Bh4 {[%clk
0:00:17.9]} 46. Bf6 {[%clk 0:00:50.2]} 46... Be1 {[%clk 0:00:16.8]} 47. Be7
{[%clk 0:00:50.2]} 47... Bc3 {[%clk 0:00:14.9]} 48. Bf8 {[%clk 0:00:50.2]} 48...
Bb2 {[%clk 0:00:14.6]} 49. Bd6 {[%clk 0:00:48.4]} 49... Bd4 {[%clk 0:00:13.8]}
50. h4 {[%clk 0:00:45.8]} 50... Bf2 {[%clk 0:00:13]} 51. h5 {[%clk 0:00:45.9]}
51... Be3 {[%clk 0:00:12.9]} 52. Bf4 {[%clk 0:00:42.4]} 52... Bd4 {[%clk
0:00:09.6]} 53. Be5 {[%clk 0:00:42.3]} 53... Be3 {[%clk 0:00:09.2]} 54. Kf6
{[%clk 0:00:41.2]} 54... Kg8 {[%clk 0:00:09.2]} 55. Bb2 {[%clk 0:00:39.8]} 55...
Bg5+ {[%clk 0:00:09.8]} 56. Kf5 {[%clk 0:00:39.9]} 56... Be3 {[%clk 0:00:09.9]}
57. Be5 {[%clk 0:00:39.8]} 57... Bg5 {[%clk 0:00:10.3]} 58. Bf4 {[%clk
0:00:39.1]} 58... Bxf4 {[%clk 0:00:09]} 59. Kxf4 {[%clk 0:00:40]} 59... Kf8
{[%clk 0:00:08.3]} 60. Ke5 {[%clk 0:00:30.4]} 60... Kg7 {[%clk 0:00:05.4]} 61.
Kf5 {[%clk 0:00:30.3]} 61... Kg8 {[%clk 0:00:05.1]} 62. Kf6 {[%clk 0:00:30.6]}
62... Kf8 {[%clk 0:00:04.4]} 63. Ke5 {[%clk 0:00:24.7]} 63... Kg7 {[%clk
0:00:04.2]} 64. Kf5 {[%clk 0:00:21.8]} 64... Kg8 {[%clk 0:00:04.1]} 65. Ke4
{[%clk 0:00:21.8]} 65... Kg7 {[%clk 0:00:04.3]} 66. Ke5 {[%clk 0:00:17.7]} 66...
Kg8 {[%clk 0:00:05.2]} 67. Kd6 {[%clk 0:00:17.4]} 67... Kg7 {[%clk 0:00:06.1]}
68. Ke7 {[%clk 0:00:17.9]} 68... Kg8 {[%clk 0:00:07]} 69. Kf6 {[%clk 0:00:16.5]}
69... Kf8 {[%clk 0:00:06.6]} 70. g5 {[%clk 0:00:16.6]} 70... hxg5 {[%clk
0:00:05.7]} 71. h6 {[%clk 0:00:17.1]} 71... Kg8 {[%clk 0:00:05.6]} 72. Kxg5
{[%clk 0:00:17.4]} 72... Kh7 {[%clk 0:00:05.8]} 73. Kh5 {[%clk 0:00:18.3]} 73...
f6 {[%clk 0:00:05.7]} 74. Kg4 {[%clk 0:00:17.9]} 74... Kxh6 {[%clk 0:00:05.8]}
75. Kf4 {[%clk 0:00:18.8]} 75... Kg6 {[%clk 0:00:06]} 76. Kf3 {[%clk 0:00:19.1]}
76... f5 {[%clk 0:00:06.4]} 77. Kf4 {[%clk 0:00:19.1]} 77... Kf6 {[%clk
0:00:05.9]} 78. Kf3 {[%clk 0:00:19.6]} 78... Ke5 {[%clk 0:00:06.5]} 79. Ke3
{[%clk 0:00:20.1]} 79... f4+ {[%clk 0:00:07.4]} 80. Kf3 {[%clk 0:00:20.5]} 80...
Kf5 {[%clk 0:00:07.3]} 81. Kf2 {[%clk 0:00:21]} 81... Ke4 {[%clk 0:00:07.8]} 82.
Ke2 {[%clk 0:00:21.4]} 82... f3+ {[%clk 0:00:08.2]} 83. Kf2 {[%clk 0:00:21.7]}
83... Kf4 {[%clk 0:00:08.7]} 84. Kf1 {[%clk 0:00:22.2]} 84... Ke3 {[%clk
0:00:08.7]} 85. Ke1 {[%clk 0:00:22.3]} 85... f2+ {[%clk 0:00:09]} 86. Kf1 {[%clk
0:00:22.4]} 86... Kf3 {[%clk 0:00:09.6]} 1/2-1/2